{"text_format":"3","workbook":"xlsx","n_sheets":3,"sheets":["Izvješće o mjesečnom proračunu","Mjesečni troškovi","Dodatni podaci"],"not_rendered":{"charts":1,"defined_names":4,"pivot_tables":2},"read":"whole","date_system":"1900"}

{"sheet":"Izvješće o mjesečnom proračunu","index":0,"n_rows":34,"n_cols":14,"rows_kept":34,"merged":[[7,1,10,1],[7,5,10,5],[7,6,10,6],[12,1,16,1],[12,5,16,5],[12,6,16,6]]}
[null,"Pregled proračuna",{"$nulls":7},"Sažetak proračuna"]
[null,"Saldo"]
[null,"Planirani saldo","(Planirani minus troškovi)",{"$nulls":3},{"$f":"D17-SUM(PojedinostiProračuna[Planirani troškovi])","v":{"v":1585,"d":"1,585 kn"}}]
[null,"Stvarni saldo ","(Stvarni minus troškovi)",{"$nulls":3},{"$f":"D11-SUM(PojedinostiProračuna[Stvarni trošak])","v":{"v":1740,"d":"1,740 kn"}}]
[null,"Razlika","(Stvarni minus planirani)",{"$nulls":3},{"$f":"G4-G3","v":{"v":155,"d":"155 kn"}}]
[]
[null,"Prihodi",{"$nulls":3},"Troškovi",{"$nulls":3},"Desnom tipkom miša kliknite zaokretnu tablicu u nastavku, zatim kliknite Osvježi za ažuriranje"]
[null,"STVARNI","Prihod 1",{"v":5800,"d":"5,800 kn"},null,"STVARNI",{"$f":"SUM(PojedinostiProračuna[Stvarni trošak])","v":{"v":7860,"d":"7,860 kn"}}]
[null,null,"Prihod 2",{"v":2300,"d":"2,300 kn"},{"$nulls":6},"Kategorija","Planirani troškovi ","Stvarni trošak ","Razlika "]
[null,null,"Dodatni prihodi",{"v":1500,"d":"1,500 kn"},{"$nulls":6},"Darovi i dobrotvorni prilozi",{"v":100,"d":"100 kn"},{"v":125,"d":"125 kn"},{"v":-25,"d":"-25 kn"}]
[null,null,"Ukupni prihodi",{"$f":"SUM(D8:D10)","v":{"v":9600,"d":"9,600 kn"}}]
[{"$nulls":10},"Djeca",{"v":140,"d":"140 kn"},{"v":140,"d":"140 kn"},{"v":0,"d":"0 kn"}]
[null,"PLANIRANI",{"$nulls":3},"PLANIRANI",{"$f":"SUM(PojedinostiProračuna[Planirani troškovi])","v":{"v":7915,"d":"7,915 kn"}}]
[null,null,"Prihod 1",{"v":6000,"d":"6,000 kn"},{"$nulls":6},"Hrana",{"v":1100,"d":"1,100 kn"},{"v":1320,"d":"1,320 kn"},{"v":-220,"d":"-220 kn"}]
[null,null,"Prihod 2",{"v":1000,"d":"1,000 kn"}]
[null,null,"Dodatni prihodi",{"v":2500,"d":"2,500 kn"},{"$nulls":6},"Krediti",{"v":200,"d":"200 kn"},{"v":200,"d":"200 kn"},{"v":0,"d":"0 kn"}]
[null,null,"Ukupni prihodi",{"$f":"SUM(D14:D16)","v":{"v":9500,"d":"9,500 kn"}}]
[{"$nulls":10},"Kućni ljubimci",{"v":170,"d":"170 kn"},{"v":100,"d":"100 kn"},{"v":70,"d":"70 kn"}]
[]
[{"$nulls":10},"Osiguranje",{"v":900,"d":"900 kn"},{"v":900,"d":"900 kn"},{"v":0,"d":"0 kn"}]
[]
[{"$nulls":10},"Osobna njega",{"v":150,"d":"150 kn"},{"v":140,"d":"140 kn"},{"v":10,"d":"10 kn"}]
[]
[{"$nulls":10},"Porezi",{"v":300,"d":"300 kn"},{"v":300,"d":"300 kn"},{"v":0,"d":"0 kn"}]
[]
[{"$nulls":10},"Prijevoz",{"v":1425,"d":"1,425 kn"},{"v":1375,"d":"1,375 kn"},{"v":50,"d":"50 kn"}]
[]
[{"$nulls":10},"Stanovanje",{"v":2830,"d":"2,830 kn"},{"v":2702,"d":"2,702 kn"},{"v":128,"d":"128 kn"}]
[]
[{"$nulls":10},"Štednja ili ulaganja",{"v":200,"d":"200 kn"},{"v":200,"d":"200 kn"},{"v":0,"d":"0 kn"}]
[]
[{"$nulls":10},"Zabava",{"v":400,"d":"400 kn"},{"v":358,"d":"358 kn"},{"v":42,"d":"42 kn"}]
[]
[{"$nulls":10},"Ukupni zbroj",{"v":7915,"d":"7,915 kn"},{"v":7860,"d":"7,860 kn"},{"v":55,"d":"55 kn"}]

{"sheet":"Mjesečni troškovi","index":1,"n_rows":62,"n_cols":7,"rows_kept":62}
[null,"Mjesečni troškovi"]
[null,"Opis","Kategorija","Planirani troškovi","Stvarni trošak","Razlika","Pregled stvarnih troškova"]
[null,"Izvannastavne aktivnosti","Djeca",{"v":40,"d":"40 kn"},{"v":40,"d":"40 kn"},{"$f":"PojedinostiProračuna[[#This Row],[Planirani troškovi]]-PojedinostiProračuna[[#This Row],[Stvarni trošak]]","v":{"v":0,"d":"0 kn"}},{"$f":"PojedinostiProračuna[[#This Row],[Stvarni trošak]]","v":{"v":40,"d":"40 kn"}}]
[null,"Liječnički troškovi","Djeca",null,null,{"$f":"PojedinostiProračuna[[#This Row],[Planirani troškovi]]-PojedinostiProračuna[[#This Row],[Stvarni trošak]]","v":{"v":0,"d":"0 kn"}},{"$f":"PojedinostiProračuna[[#This Row],[Stvarni trošak]]","v":{"v":0,"d":"0 kn"}}]
[null,"Školski pribor","Djeca",null,null,{"$f":"PojedinostiProračuna[[#This Row],[Planirani troškovi]]-PojedinostiProračuna[[#This Row],[Stvarni trošak]]","v":{"v":0,"d":"0 kn"}},{"$f":"PojedinostiProračuna[[#This Row],[Stvarni trošak]]","v":{"v":0,"d":"0 kn"}}]
[null,"Školarina","Djeca",{"v":100,"d":"100 kn"},{"v":100,"d":"100 kn"},{"$f":"PojedinostiProračuna[[#This Row],[Planirani troškovi]]-PojedinostiProračuna[[#This Row],[Stvarni trošak]]","v":{"v":0,"d":"0 kn"}},{"$f":"PojedinostiProračuna[[#This Row],[Stvarni trošak]]","v":{"v":100,"d":"100 kn"}}]
[null,"Koncerti","Zabava",{"v":50,"d":"50 kn"},{"v":40,"d":"40 kn"},{"$f":"PojedinostiProračuna[[#This Row],[Planirani troškovi]]-PojedinostiProračuna[[#This Row],[Stvarni trošak]]","v":{"v":10,"d":"10 kn"}},{"$f":"PojedinostiProračuna[[#This Row],[Stvarni trošak]]","v":{"v":40,"d":"40 kn"}}]
[null,"Kazalište","Zabava",{"v":200,"d":"200 kn"},{"v":150,"d":"150 kn"},{"$f":"PojedinostiProračuna[[#This Row],[Planirani troškovi]]-PojedinostiProračuna[[#This Row],[Stvarni trošak]]","v":{"v":50,"d":"50 kn"}},{"$f":"PojedinostiProračuna[[#This Row],[Stvarni trošak]]","v":{"v":150,"d":"150 kn"}}]
[null,"Filmovi","Zabava",{"v":50,"d":"50 kn"},{"v":28,"d":"28 kn"},{"$f":"PojedinostiProračuna[[#This Row],[Planirani troškovi]]-PojedinostiProračuna[[#This Row],[Stvarni trošak]]","v":{"v":22,"d":"22 kn"}},{"$f":"PojedinostiProračuna[[#This Row],[Stvarni trošak]]","v":{"v":28,"d":"28 kn"}}]
[null,"Glazba (CD-ovi, preuzimanja itd.)","Zabava",{"v":50,"d":"50 kn"},{"v":30,"d":"30 kn"},{"$f":"PojedinostiProračuna[[#This Row],[Planirani troškovi]]-PojedinostiProračuna[[#This Row],[Stvarni trošak]]","v":{"v":20,"d":"20 kn"}},{"$f":"PojedinostiProračuna[[#This Row],[Stvarni trošak]]","v":{"v":30,"d":"30 kn"}}]
[null,"Sportska događanja","Zabava",{"v":0,"d":"0 kn"},{"v":40,"d":"40 kn"},{"$f":"PojedinostiProračuna[[#This Row],[Planirani troškovi]]-PojedinostiProračuna[[#This Row],[Stvarni trošak]]","v":{"v":-40,"d":"-40 kn"}},{"$f":"PojedinostiProračuna[[#This Row],[Stvarni trošak]]","v":{"v":40,"d":"40 kn"}}]
[null,"Filmovi/DVD-ovi (kupnja)","Zabava",{"v":20,"d":"20 kn"},{"v":50,"d":"50 kn"},{"$f":"PojedinostiProračuna[[#This Row],[Planirani troškovi]]-PojedinostiProračuna[[#This Row],[Stvarni trošak]]","v":{"v":-30,"d":"-30 kn"}},{"$f":"PojedinostiProračuna[[#This Row],[Stvarni trošak]]","v":{"v":50,"d":"50 kn"}}]
[null,"Filmovi/DVD-ovi (posudba)","Zabava",{"v":30,"d":"30 kn"},{"v":20,"d":"20 kn"},{"$f":"PojedinostiProračuna[[#This Row],[Planirani troškovi]]-PojedinostiProračuna[[#This Row],[Stvarni trošak]]","v":{"v":10,"d":"10 kn"}},{"$f":"PojedinostiProračuna[[#This Row],[Stvarni trošak]]","v":{"v":20,"d":"20 kn"}}]
[null,"Restorani","Hrana",{"v":1000,"d":"1,000 kn"},{"v":1200,"d":"1,200 kn"},{"$f":"PojedinostiProračuna[[#This Row],[Planirani troškovi]]-PojedinostiProračuna[[#This Row],[Stvarni trošak]]","v":{"v":-200,"d":"-200 kn"}},{"$f":"PojedinostiProračuna[[#This Row],[Stvarni trošak]]","v":{"v":1200,"d":"1,200 kn"}}]
[null,"Namirnice","Hrana",{"v":100,"d":"100 kn"},{"v":120,"d":"120 kn"},{"$f":"PojedinostiProračuna[[#This Row],[Planirani troškovi]]-PojedinostiProračuna[[#This Row],[Stvarni trošak]]","v":{"v":-20,"d":"-20 kn"}},{"$f":"PojedinostiProračuna[[#This Row],[Stvarni trošak]]","v":{"v":120,"d":"120 kn"}}]
[null,"Dobrotvorni prilog 1","Darovi i dobrotvorni prilozi",{"v":75,"d":"75 kn"},{"v":100,"d":"100 kn"},{"$f":"PojedinostiProračuna[[#This Row],[Planirani troškovi]]-PojedinostiProračuna[[#This Row],[Stvarni trošak]]","v":{"v":-25,"d":"-25 kn"}},{"$f":"PojedinostiProračuna[[#This Row],[Stvarni trošak]]","v":{"v":100,"d":"100 kn"}}]
[null,"Dobrotvorni prilog 2","Darovi i dobrotvorni prilozi",{"v":25,"d":"25 kn"},{"v":25,"d":"25 kn"},{"$f":"PojedinostiProračuna[[#This Row],[Planirani troškovi]]-PojedinostiProračuna[[#This Row],[Stvarni trošak]]","v":{"v":0,"d":"0 kn"}},{"$f":"PojedinostiProračuna[[#This Row],[Stvarni trošak]]","v":{"v":25,"d":"25 kn"}}]
[null,"Dar 1","Darovi i dobrotvorni prilozi",null,null,{"$f":"PojedinostiProračuna[[#This Row],[Planirani troškovi]]-PojedinostiProračuna[[#This Row],[Stvarni trošak]]","v":{"v":0,"d":"0 kn"}},{"$f":"PojedinostiProračuna[[#This Row],[Stvarni trošak]]","v":{"v":0,"d":"0 kn"}}]
[null,"Dar 2","Darovi i dobrotvorni prilozi",null,null,{"$f":"PojedinostiProračuna[[#This Row],[Planirani troškovi]]-PojedinostiProračuna[[#This Row],[Stvarni trošak]]","v":{"v":0,"d":"0 kn"}},{"$f":"PojedinostiProračuna[[#This Row],[Stvarni trošak]]","v":{"v":0,"d":"0 kn"}}]
[null,"Kabelska/satelitska televizija","Stanovanje",{"v":100,"d":"100 kn"},{"v":100,"d":"100 kn"},{"$f":"PojedinostiProračuna[[#This Row],[Planirani troškovi]]-PojedinostiProračuna[[#This Row],[Stvarni trošak]]","v":{"v":0,"d":"0 kn"}},{"$f":"PojedinostiProračuna[[#This Row],[Stvarni trošak]]","v":{"v":100,"d":"100 kn"}}]
[null,"Struja","Stanovanje",{"v":45,"d":"45 kn"},{"v":50,"d":"50 kn"},{"$f":"PojedinostiProračuna[[#This Row],[Planirani troškovi]]-PojedinostiProračuna[[#This Row],[Stvarni trošak]]","v":{"v":-5,"d":"-5 kn"}},{"$f":"PojedinostiProračuna[[#This Row],[Stvarni trošak]]","v":{"v":50,"d":"50 kn"}}]
[null,"Plin","Stanovanje",{"v":300,"d":"300 kn"},{"v":400,"d":"400 kn"},{"$f":"PojedinostiProračuna[[#This Row],[Planirani troškovi]]-PojedinostiProračuna[[#This Row],[Stvarni trošak]]","v":{"v":-100,"d":"-100 kn"}},{"$f":"PojedinostiProračuna[[#This Row],[Stvarni trošak]]","v":{"v":400,"d":"400 kn"}}]
[null,"Usluga čišćenja stana","Stanovanje",{"v":200,"d":"200 kn"},null,{"$f":"PojedinostiProračuna[[#This Row],[Planirani troškovi]]-PojedinostiProračuna[[#This Row],[Stvarni trošak]]","v":{"v":200,"d":"200 kn"}},{"$f":"PojedinostiProračuna[[#This Row],[Stvarni trošak]]","v":{"v":0,"d":"0 kn"}}]
[null,"Održavanje","Stanovanje",{"v":200,"d":"200 kn"},{"v":150,"d":"150 kn"},{"$f":"PojedinostiProračuna[[#This Row],[Planirani troškovi]]-PojedinostiProračuna[[#This Row],[Stvarni trošak]]","v":{"v":50,"d":"50 kn"}},{"$f":"PojedinostiProračuna[[#This Row],[Stvarni trošak]]","v":{"v":150,"d":"150 kn"}}]
[null,"Hipoteka ili najamnina","Stanovanje",{"v":1700,"d":"1,700 kn"},{"v":1700,"d":"1,700 kn"},{"$f":"PojedinostiProračuna[[#This Row],[Planirani troškovi]]-PojedinostiProračuna[[#This Row],[Stvarni trošak]]","v":{"v":0,"d":"0 kn"}},{"$f":"PojedinostiProračuna[[#This Row],[Stvarni trošak]]","v":{"v":1700,"d":"1,700 kn"}}]
[null,"Prirodni plin/benzin","Stanovanje",null,null,{"$f":"PojedinostiProračuna[[#This Row],[Planirani troškovi]]-PojedinostiProračuna[[#This Row],[Stvarni trošak]]","v":{"v":0,"d":"0 kn"}},{"$f":"PojedinostiProračuna[[#This Row],[Stvarni trošak]]","v":{"v":0,"d":"0 kn"}}]
[null,"Internet","Stanovanje",{"v":100,"d":"100 kn"},{"v":100,"d":"100 kn"},{"$f":"PojedinostiProračuna[[#This Row],[Planirani troškovi]]-PojedinostiProračuna[[#This Row],[Stvarni trošak]]","v":{"v":0,"d":"0 kn"}},{"$f":"PojedinostiProračuna[[#This Row],[Stvarni trošak]]","v":{"v":100,"d":"100 kn"}}]
[null,"Telefon (mobilni)","Stanovanje",{"v":60,"d":"60 kn"},{"v":60,"d":"60 kn"},{"$f":"PojedinostiProračuna[[#This Row],[Planirani troškovi]]-PojedinostiProračuna[[#This Row],[Stvarni trošak]]","v":{"v":0,"d":"0 kn"}},{"$f":"PojedinostiProračuna[[#This Row],[Stvarni trošak]]","v":{"v":60,"d":"60 kn"}}]
[null,"Telefon (kućni)","Stanovanje",{"v":35,"d":"35 kn"},{"v":39,"d":"39 kn"},{"$f":"PojedinostiProračuna[[#This Row],[Planirani troškovi]]-PojedinostiProračuna[[#This Row],[Stvarni trošak]]","v":{"v":-4,"d":"-4 kn"}},{"$f":"PojedinostiProračuna[[#This Row],[Stvarni trošak]]","v":{"v":39,"d":"39 kn"}}]
[null,"Potrepštine","Stanovanje",{"v":40,"d":"40 kn"},{"v":55,"d":"55 kn"},{"$f":"PojedinostiProračuna[[#This Row],[Planirani troškovi]]-PojedinostiProračuna[[#This Row],[Stvarni trošak]]","v":{"v":-15,"d":"-15 kn"}},{"$f":"PojedinostiProračuna[[#This Row],[Stvarni trošak]]","v":{"v":55,"d":"55 kn"}}]
[null,"Uklanjanje otpada i recikliranje","Stanovanje",{"v":25,"d":"25 kn"},{"v":22,"d":"22 kn"},{"$f":"PojedinostiProračuna[[#This Row],[Planirani troškovi]]-PojedinostiProračuna[[#This Row],[Stvarni trošak]]","v":{"v":3,"d":"3 kn"}},{"$f":"PojedinostiProračuna[[#This Row],[Stvarni trošak]]","v":{"v":22,"d":"22 kn"}}]
[null,"Voda i komunalna naknada","Stanovanje",{"v":25,"d":"25 kn"},{"v":26,"d":"26 kn"},{"$f":"PojedinostiProračuna[[#This Row],[Planirani troškovi]]-PojedinostiProračuna[[#This Row],[Stvarni trošak]]","v":{"v":-1,"d":"-1 kn"}},{"$f":"PojedinostiProračuna[[#This Row],[Stvarni trošak]]","v":{"v":26,"d":"26 kn"}}]
[null,"Zdravlje","Osiguranje",{"v":400,"d":"400 kn"},{"v":400,"d":"400 kn"},{"$f":"PojedinostiProračuna[[#This Row],[Planirani troškovi]]-PojedinostiProračuna[[#This Row],[Stvarni trošak]]","v":{"v":0,"d":"0 kn"}},{"$f":"PojedinostiProračuna[[#This Row],[Stvarni trošak]]","v":{"v":400,"d":"400 kn"}}]
[null,"Kuća","Osiguranje",{"v":400,"d":"400 kn"},{"v":400,"d":"400 kn"},{"$f":"PojedinostiProračuna[[#This Row],[Planirani troškovi]]-PojedinostiProračuna[[#This Row],[Stvarni trošak]]","v":{"v":0,"d":"0 kn"}},{"$f":"PojedinostiProračuna[[#This Row],[Stvarni trošak]]","v":{"v":400,"d":"400 kn"}}]
[null,"Životno osiguranje","Osiguranje",{"v":100,"d":"100 kn"},{"v":100,"d":"100 kn"},{"$f":"PojedinostiProračuna[[#This Row],[Planirani troškovi]]-PojedinostiProračuna[[#This Row],[Stvarni trošak]]","v":{"v":0,"d":"0 kn"}},{"$f":"PojedinostiProračuna[[#This Row],[Stvarni trošak]]","v":{"v":100,"d":"100 kn"}}]
[null,"Kreditna kartica 1","Krediti",{"v":200,"d":"200 kn"},{"v":200,"d":"200 kn"},{"$f":"PojedinostiProračuna[[#This Row],[Planirani troškovi]]-PojedinostiProračuna[[#This Row],[Stvarni trošak]]","v":{"v":0,"d":"0 kn"}},{"$f":"PojedinostiProračuna[[#This Row],[Stvarni trošak]]","v":{"v":200,"d":"200 kn"}}]
[null,"Kreditna kartica 2","Krediti",null,null,{"$f":"PojedinostiProračuna[[#This Row],[Planirani troškovi]]-PojedinostiProračuna[[#This Row],[Stvarni trošak]]","v":{"v":0,"d":"0 kn"}},{"$f":"PojedinostiProračuna[[#This Row],[Stvarni trošak]]","v":{"v":0,"d":"0 kn"}}]
[null,"Kreditna kartica 3","Krediti",null,null,{"$f":"PojedinostiProračuna[[#This Row],[Planirani troškovi]]-PojedinostiProračuna[[#This Row],[Stvarni trošak]]","v":{"v":0,"d":"0 kn"}},{"$f":"PojedinostiProračuna[[#This Row],[Stvarni trošak]]","v":{"v":0,"d":"0 kn"}}]
[null,"Osobne potrebe","Krediti",null,null,{"$f":"PojedinostiProračuna[[#This Row],[Planirani troškovi]]-PojedinostiProračuna[[#This Row],[Stvarni trošak]]","v":{"v":0,"d":"0 kn"}},{"$f":"PojedinostiProračuna[[#This Row],[Stvarni trošak]]","v":{"v":0,"d":"0 kn"}}]
[null,"Studentski kredit","Krediti",null,null,{"$f":"PojedinostiProračuna[[#This Row],[Planirani troškovi]]-PojedinostiProračuna[[#This Row],[Stvarni trošak]]","v":{"v":0,"d":"0 kn"}},{"$f":"PojedinostiProračuna[[#This Row],[Stvarni trošak]]","v":{"v":0,"d":"0 kn"}}]
[null,"Odjeća","Osobna njega",{"v":150,"d":"150 kn"},{"v":140,"d":"140 kn"},{"$f":"PojedinostiProračuna[[#This Row],[Planirani troškovi]]-PojedinostiProračuna[[#This Row],[Stvarni trošak]]","v":{"v":10,"d":"10 kn"}},{"$f":"PojedinostiProračuna[[#This Row],[Stvarni trošak]]","v":{"v":140,"d":"140 kn"}}]
[null,"Čišćenje odjeće","Osobna njega",null,null,{"$f":"PojedinostiProračuna[[#This Row],[Planirani troškovi]]-PojedinostiProračuna[[#This Row],[Stvarni trošak]]","v":{"v":0,"d":"0 kn"}},{"$f":"PojedinostiProračuna[[#This Row],[Stvarni trošak]]","v":{"v":0,"d":"0 kn"}}]
[null,"Frizura/manikura","Osobna njega",null,null,{"$f":"PojedinostiProračuna[[#This Row],[Planirani troškovi]]-PojedinostiProračuna[[#This Row],[Stvarni trošak]]","v":{"v":0,"d":"0 kn"}},{"$f":"PojedinostiProračuna[[#This Row],[Stvarni trošak]]","v":{"v":0,"d":"0 kn"}}]
[null,"Teretana","Osobna njega",null,null,{"$f":"PojedinostiProračuna[[#This Row],[Planirani troškovi]]-PojedinostiProračuna[[#This Row],[Stvarni trošak]]","v":{"v":0,"d":"0 kn"}},{"$f":"PojedinostiProračuna[[#This Row],[Stvarni trošak]]","v":{"v":0,"d":"0 kn"}}]
[null,"Liječnički troškovi","Osobna njega",null,null,{"$f":"PojedinostiProračuna[[#This Row],[Planirani troškovi]]-PojedinostiProračuna[[#This Row],[Stvarni trošak]]","v":{"v":0,"d":"0 kn"}},{"$f":"PojedinostiProračuna[[#This Row],[Stvarni trošak]]","v":{"v":0,"d":"0 kn"}}]
[null,"Hrana","Kućni ljubimci",{"v":150,"d":"150 kn"},{"v":75,"d":"75 kn"},{"$f":"PojedinostiProračuna[[#This Row],[Planirani troškovi]]-PojedinostiProračuna[[#This Row],[Stvarni trošak]]","v":{"v":75,"d":"75 kn"}},{"$f":"PojedinostiProračuna[[#This Row],[Stvarni trošak]]","v":{"v":75,"d":"75 kn"}}]
[null,"Njega ljubimaca","Kućni ljubimci",{"v":20,"d":"20 kn"},{"v":25,"d":"25 kn"},{"$f":"PojedinostiProračuna[[#This Row],[Planirani troškovi]]-PojedinostiProračuna[[#This Row],[Stvarni trošak]]","v":{"v":-5,"d":"-5 kn"}},{"$f":"PojedinostiProračuna[[#This Row],[Stvarni trošak]]","v":{"v":25,"d":"25 kn"}}]
[null,"Liječnički troškovi","Kućni ljubimci",null,null,{"$f":"PojedinostiProračuna[[#This Row],[Planirani troškovi]]-PojedinostiProračuna[[#This Row],[Stvarni trošak]]","v":{"v":0,"d":"0 kn"}},{"$f":"PojedinostiProračuna[[#This Row],[Stvarni trošak]]","v":{"v":0,"d":"0 kn"}}]
[null,"Igračke","Kućni ljubimci",null,null,{"$f":"PojedinostiProračuna[[#This Row],[Planirani troškovi]]-PojedinostiProračuna[[#This Row],[Stvarni trošak]]","v":{"v":0,"d":"0 kn"}},{"$f":"PojedinostiProračuna[[#This Row],[Stvarni trošak]]","v":{"v":0,"d":"0 kn"}}]
[null,"Investicijski račun","Štednja ili ulaganja",{"v":200,"d":"200 kn"},{"v":200,"d":"200 kn"},{"$f":"PojedinostiProračuna[[#This Row],[Planirani troškovi]]-PojedinostiProračuna[[#This Row],[Stvarni trošak]]","v":{"v":0,"d":"0 kn"}},{"$f":"PojedinostiProračuna[[#This Row],[Stvarni trošak]]","v":{"v":200,"d":"200 kn"}}]
[null,"Mirovinska štednja","Štednja ili ulaganja",null,null,{"$f":"PojedinostiProračuna[[#This Row],[Planirani troškovi]]-PojedinostiProračuna[[#This Row],[Stvarni trošak]]","v":{"v":0,"d":"0 kn"}},{"$f":"PojedinostiProračuna[[#This Row],[Stvarni trošak]]","v":{"v":0,"d":"0 kn"}}]
[null,"Savezni","Porezi",{"v":300,"d":"300 kn"},{"v":300,"d":"300 kn"},{"$f":"PojedinostiProračuna[[#This Row],[Planirani troškovi]]-PojedinostiProračuna[[#This Row],[Stvarni trošak]]","v":{"v":0,"d":"0 kn"}},{"$f":"PojedinostiProračuna[[#This Row],[Stvarni trošak]]","v":{"v":300,"d":"300 kn"}}]
[null,"Lokalni","Porezi",null,null,{"$f":"PojedinostiProračuna[[#This Row],[Planirani troškovi]]-PojedinostiProračuna[[#This Row],[Stvarni trošak]]","v":{"v":0,"d":"0 kn"}},{"$f":"PojedinostiProračuna[[#This Row],[Stvarni trošak]]","v":{"v":0,"d":"0 kn"}}]
[null,"Državni","Porezi",null,null,{"$f":"PojedinostiProračuna[[#This Row],[Planirani troškovi]]-PojedinostiProračuna[[#This Row],[Stvarni trošak]]","v":{"v":0,"d":"0 kn"}},{"$f":"PojedinostiProračuna[[#This Row],[Stvarni trošak]]","v":{"v":0,"d":"0 kn"}}]
[null,"Autobus/taksi","Prijevoz",{"v":100,"d":"100 kn"},{"v":150,"d":"150 kn"},{"$f":"PojedinostiProračuna[[#This Row],[Planirani troškovi]]-PojedinostiProračuna[[#This Row],[Stvarni trošak]]","v":{"v":-50,"d":"-50 kn"}},{"$f":"PojedinostiProračuna[[#This Row],[Stvarni trošak]]","v":{"v":150,"d":"150 kn"}}]
[null,"Gorivo","Prijevoz",{"v":450,"d":"450 kn"},{"v":400,"d":"400 kn"},{"$f":"PojedinostiProračuna[[#This Row],[Planirani troškovi]]-PojedinostiProračuna[[#This Row],[Stvarni trošak]]","v":{"v":50,"d":"50 kn"}},{"$f":"PojedinostiProračuna[[#This Row],[Stvarni trošak]]","v":{"v":400,"d":"400 kn"}}]
[null,"Osiguranje","Prijevoz",{"v":300,"d":"300 kn"},{"v":300,"d":"300 kn"},{"$f":"PojedinostiProračuna[[#This Row],[Planirani troškovi]]-PojedinostiProračuna[[#This Row],[Stvarni trošak]]","v":{"v":0,"d":"0 kn"}},{"$f":"PojedinostiProračuna[[#This Row],[Stvarni trošak]]","v":{"v":300,"d":"300 kn"}}]
[null,"Registracija ","Prijevoz",{"v":25,"d":"25 kn"},{"v":25,"d":"25 kn"},{"$f":"PojedinostiProračuna[[#This Row],[Planirani troškovi]]-PojedinostiProračuna[[#This Row],[Stvarni trošak]]","v":{"v":0,"d":"0 kn"}},{"$f":"PojedinostiProračuna[[#This Row],[Stvarni trošak]]","v":{"v":25,"d":"25 kn"}}]
[null,"Održavanje","Prijevoz",{"v":100,"d":"100 kn"},{"v":50,"d":"50 kn"},{"$f":"PojedinostiProračuna[[#This Row],[Planirani troškovi]]-PojedinostiProračuna[[#This Row],[Stvarni trošak]]","v":{"v":50,"d":"50 kn"}},{"$f":"PojedinostiProračuna[[#This Row],[Stvarni trošak]]","v":{"v":50,"d":"50 kn"}}]
[null,"Parking naknade","Prijevoz",null,null,{"$f":"PojedinostiProračuna[[#This Row],[Planirani troškovi]]-PojedinostiProračuna[[#This Row],[Stvarni trošak]]","v":{"v":0,"d":"0 kn"}},{"$f":"PojedinostiProračuna[[#This Row],[Stvarni trošak]]","v":{"v":0,"d":"0 kn"}}]
[null,"Troškovi vozila","Prijevoz",{"v":450,"d":"450 kn"},{"v":450,"d":"450 kn"},{"$f":"PojedinostiProračuna[[#This Row],[Planirani troškovi]]-PojedinostiProračuna[[#This Row],[Stvarni trošak]]","v":{"v":0,"d":"0 kn"}},{"$f":"PojedinostiProračuna[[#This Row],[Stvarni trošak]]","v":{"v":450,"d":"450 kn"}}]
[null,"Ukupno",null,{"$f":"SUBTOTAL(109,PojedinostiProračuna[Planirani troškovi])","v":{"v":7915,"d":"7,915 kn"}},{"$f":"SUBTOTAL(109,PojedinostiProračuna[Stvarni trošak])","v":{"v":7860,"d":"7,860 kn"}},{"$f":"SUBTOTAL(109,PojedinostiProračuna[Razlika])","v":{"v":55,"d":"55 kn"}}]

{"sheet":"Dodatni podaci","index":2,"n_rows":15,"n_cols":5,"rows_kept":15}
[null,"Zaokretna tablica za grafikon Pregled proračuna",null,null,"Popis za pretraživanje za kategoriju Detalji o proračunu"]
[null,"Kategorija","Trošak",null,"Pretraživanje kategorija proračuna"]
[null,"Djeca",140,null,"Djeca"]
[null,"Zabava",358,null,"Zabava"]
[null,"Hrana",1320,null,"Hrana"]
[null,"Darovi i dobrotvorni prilozi",125,null,"Darovi i dobrotvorni prilozi"]
[null,"Stanovanje",2702,null,"Stanovanje"]
[null,"Osiguranje",900,null,"Osiguranje"]
[null,"Krediti",200,null,"Krediti"]
[null,"Osobna njega",140,null,"Osobna njega"]
[null,"Kućni ljubimci",100,null,"Kućni ljubimci"]
[null,"Štednja ili ulaganja",200,null,"Štednja ili ulaganja"]
[null,"Porezi",300,null,"Porezi"]
[null,"Prijevoz",1375,null,"Prijevoz"]
[null,"Ukupni zbroj",7860]